fUSD/lending_fUSD_20250523
["ID","MTS","AMOUNT","RATE_DAILY","PERIOD"]
[362160063,1748042735237,420.0,0.0004255,120]
[362160064,1748042735479,420.0,0.0004255,120]
[362160065,1748042735721,420.0,0.0004255,120]
[362160066,1748042735977,420.0,0.0004255,120]
[362160067,1748042736243,420.0,0.0004255,120]
[362160068,1748042736527,420.0,0.0004255,120]
[362160069,1748042736743,498.52,0.0004255,120]
[362160070,1748042736817,420.0,0.0004255,120]
[362160071,1748042737048,420.0,0.0004255,120]
[362160072,1748042737295,420.0,0.0004255,120]
[362160073,1748042737551,420.0,0.0004255,120]
[362160074,1748042737695,477.84927593,0.0004255,120]
[362160075,1748042737828,420.0,0.0004255,120]
[362160076,1748042738097,420.0,0.0004255,120]
[362160077,1748042738155,420.0,0.0004255,120]
[362160078,1748042738186,-225.72567213,0.00017,2]
[362160079,1748042738395,420.0,0.0004255,120]
[362160080,1748042738645,420.0,0.0004255,120]
[362160081,1748042738907,420.0,0.0004255,120]
[362160082,1748042739308,161.21,0.0004255,120]
[362160083,1748042741516,500.80008772,0.0004255,120]
[362160084,1748042741691,339.17404183,0.0004255,120]
[362160085,1748042741949,420.0,0.0004255,120]
[362160086,1748042743208,420.0,0.0004255,120]
[362160087,1748042743599,420.0,0.0004255,120]
[362160088,1748042743877,863.10476216,0.0004255,120]
[362160089,1748042745469,420.0,0.0004255,120]
[362160090,1748042745758,420.0,0.0004255,120]
[362160091,1748042749161,420.0,0.0004255,120]
[362160092,1748042749294,420.0,0.0004255,120]
[362160093,1748042751171,507.99360813,0.0004255,120]
[362160094,1748042757235,420.0,0.0004255,120]
[362160095,1748042759556,363.96,0.0004255,120]
[362160096,1748042760168,420.0,0.0004255,120]
[362160097,1748042760959,1680.87639226,0.0004255,90]
[362160098,1748042761946,324.33,0.0004255,120]
[362160100,1748042763393,176.16306372,0.0004255,120]
[362160101,1748042765353,1087.2195885,0.0004255,120]
[362160102,1748042765938,420.0,0.0004255,120]
[362160103,1748042766033,420.0,0.0004255,120]
[362160104,1748042766531,420.0,0.0004255,120]
[362160105,1748042766792,243.04,0.0004255,120]
[362160106,1748042767070,511.54,0.0004255,120]
[362160107,1748042768293,226.64938037,0.0004255,120]
[362160108,1748042769739,420.0,0.0004255,120]
[362160109,1748042769835,150.03382465,0.0004255,120]
[362160110,1748042769989,420.0,0.0004255,120]
[362160111,1748042770604,420.0,0.0004255,120]
[362160112,1748042770857,420.0,0.0004255,120]
[362160113,1748042770915,420.0,0.0004255,120]
[362160114,1748042771106,420.0,0.0004255,120]
[362160115,1748042771354,420.0,0.0004255,120]
[362160116,1748042771595,420.0,0.0004255,120]
[362160117,1748042771829,420.0,0.0004255,120]
[362160118,1748042772086,420.0,0.0004255,120]
[362160119,1748042772345,420.0,0.0004255,120]
[362160120,1748042772601,420.0,0.0004255,120]
[362160121,1748042772840,420.0,0.0004255,120]
[362160122,1748042773001,1781.75053935,0.0004255,120]
[362160123,1748042773074,420.0,0.0004255,120]
[362160124,1748042773356,420.0,0.0004255,120]
[362160125,1748042773607,420.0,0.0004255,120]
[362160126,1748042773866,297.68,0.0004255,120]
[362160127,1748042774311,772.77412779,0.0004255,120]
[362160128,1748042775110,420.0,0.0004255,120]
[362160129,1748042776133,420.0,0.0004255,120]
[362160130,1748042776209,1773.79307051,0.0004255,120]
[362160131,1748042776275,666.0,0.0004255,120]
[362160132,1748042776342,420.0,0.0004255,120]
[362160133,1748042776480,666.0,0.0004255,120]
[362160134,1748042776539,420.0,0.0004255,120]
[362160135,1748042776750,666.0,0.0004255,120]
[362160136,1748042776813,420.0,0.0004255,120]
[362160137,1748042777051,420.0,0.0004255,120]
[362160138,1748042777154,666.0,0.0004255,120]
[362160139,1748042777309,420.0,0.0004255,120]
[362160140,1748042777419,666.0,0.0004255,120]
[362160141,1748042777669,666.0,0.0004255,120]
[362160142,1748042777728,420.0,0.0004255,120]
[362160143,1748042777936,666.0,0.0004255,120]
[362160144,1748042778181,666.0,0.0004255,120]
[362160145,1748042778308,420.0,0.0004255,120]
[362160146,1748042778433,666.0,0.0004255,120]
[362160147,1748042778588,420.0,0.0004255,120]
[362160148,1748042778671,666.0,0.0004255,120]
[362160149,1748042778840,420.0,0.0004255,120]
[362160150,1748042778916,666.0,0.0004255,120]
[362160151,1748042779080,420.0,0.0004255,120]
[362160152,1748042779149,666.0,0.0004255,120]
[362160153,1748042779333,420.0,0.0004255,120]
[362160154,1748042779396,666.0,0.0004255,120]
[362160155,1748042779568,420.0,0.0004255,120]
[362160156,1748042779874,420.0,0.0004255,120]
[362160157,1748042780006,491.52,0.0004255,120]
[362160158,1748042780117,420.0,0.0004255,120]
[362160159,1748042780358,420.0,0.0004255,120]
[362160160,1748042780559,765.35067432,0.0004255,120]
[362160161,1748042780904,420.0,0.0004255,120]
[362160162,1748042780969,304.96,0.0004255,120]
[362160163,1748042781731,492.7478399,0.0004255,120]
[362160164,1748042781947,2580.91509886,0.0004255,120]
[362160165,1748042783192,586.45,0.0004255,120]
[362160166,1748042783444,586.45,0.0004255,120]
[362160167,1748042783736,586.45,0.0004255,120]
[362160168,1748042783975,586.45,0.0004255,120]
[362160169,1748042784434,586.45,0.0004255,120]
[362160170,1748042784688,586.45,0.0004255,120]
[362160171,1748042784953,586.45,0.0004255,120]
[362160172,1748042785165,586.45,0.0004255,120]
[362160173,1748042785398,586.45,0.0004255,120]
[362160174,1748042785662,586.45,0.0004255,120]
[362160175,1748042785913,586.45,0.0004255,120]
[362160176,1748042786319,586.45,0.0004255,120]
[362160177,1748042786443,586.45,0.0004255,120]
[362160178,1748042786687,586.45,0.0004255,120]
[362160179,1748042786935,586.45,0.0004255,120]
[362160180,1748042787200,586.45,0.0004255,120]
[362160181,1748042787471,586.45,0.0004255,120]
[362160182,1748042787539,653.85334485,0.0004255,120]
[362160183,1748042787734,586.45,0.0004255,120]
[362160184,1748042787980,586.45,0.0004255,120]
[362160185,1748042788224,586.45,0.0004255,120]
[362160186,1748042788510,586.45,0.0004255,120]
[362160187,1748042788764,586.45,0.0004255,120]
[362160188,1748042788952,256.57035264,0.0004255,120]
[362160189,1748042789019,586.45,0.0004255,120]
[362160190,1748042789264,586.45,0.0004255,120]
[362160191,1748042792331,-74.27432787,0.00017,2]
[362160192,1748042792356,-153.50382221,0.00017544,2]
[362160193,1748042794736,420.0,0.0004255,120]
[362160194,1748042794989,420.0,0.0004255,120]
[362160195,1748042795238,420.0,0.0004255,120]
[362160196,1748042795504,420.0,0.0004255,120]
[362160197,1748042795760,420.0,0.0004255,120]
[362160198,1748042796066,420.0,0.0004255,120]
[362160199,1748042796501,420.0,0.0004255,120]
[362160200,1748042796919,238.34,0.0004255,120]
[362160201,1748042799592,472.67273075,0.0004255,120]
[362160202,1748042801381,420.0,0.0004255,120]
[362160203,1748042801652,420.0,0.0004255,120]
[362160204,1748042803395,420.0,0.0004255,120]
[362160205,1748042803631,420.0,0.0004255,120]
[362160206,1748042803692,980.57,0.0004255,120]
[362160207,1748042803904,420.0,0.0004255,120]
[362160208,1748042804017,980.57,0.0004255,120]
[362160209,1748042804265,980.57,0.0004255,120]
[362160210,1748042804322,420.0,0.0004255,120]
[362160211,1748042804509,980.57,0.0004255,120]
[362160212,1748042804566,170.27,0.0004255,120]
[362160213,1748042804623,420.0,0.0004255,120]
[362160214,1748042804750,980.57,0.0004255,120]
[362160215,1748042804819,420.0,0.0004255,120]
[362160216,1748042805257,980.57,0.0004255,120]
[362160217,1748042805314,318.77,0.0004255,120]
[362160218,1748042805427,980.57,0.0004255,120]
[362160219,1748042805675,980.57,0.0004255,120]
[362160220,1748042805919,980.57,0.0004255,120]
[362160221,1748042806159,980.57,0.0004255,120]
[362160222,1748042806426,980.57,0.0004255,120]
[362160223,1748042806818,980.57,0.0004255,120]
[362160224,1748042806906,980.57,0.0004255,120]
[362160225,1748042806964,420.0,0.0004255,120]
[362160226,1748042807147,980.57,0.0004255,120]
[362160227,1748042807210,420.0,0.0004255,120]
[362160228,1748042807380,980.57,0.0004255,120]
[362160229,1748042807448,420.0,0.0004255,120]
[362160230,1748042807648,980.57,0.0004255,120]
[362160231,1748042807711,420.0,0.0004255,120]
[362160232,1748042807890,980.57,0.0004255,120]
[362160233,1748042807967,420.0,0.0004255,120]
[362160234,1748042808149,980.57,0.0004255,120]
[362160235,1748042808225,420.0,0.0004255,120]
[362160236,1748042808426,980.57,0.0004255,120]
[362160237,1748042808487,420.0,0.0004255,120]
[362160238,1748042808541,400.80993688,0.0004255,120]
[362160239,1748042808670,980.57,0.0004255,120]
[362160240,1748042808727,420.0,0.0004255,120]
[362160241,1748042808785,563.47,0.0004255,120]
[362160242,1748042808920,980.57,0.0004255,120]
[362160243,1748042809165,980.57,0.0004255,120]
[362160244,1748042809406,980.57,0.0004255,120]
[362160245,1748042809649,980.57,0.0004255,120]
[362160246,1748042810717,183.24131663,0.0004255,120]
[362160247,1748042812296,420.0,0.0004255,120]
[362160248,1748042812863,500.0,0.0004255,120]
[362160249,1748042816000,422.53110369,0.0004255,120]
[362160250,1748042819814,420.0,0.0004255,120]
[362160251,1748042822064,227.84357359,0.0004255,120]
[362160252,1748042823076,212.95,0.0004255,120]
[362160253,1748042824736,505.92,0.0004255,120]
[362160254,1748042824837,500.0,0.0004255,120]
[362160255,1748042824902,1000.0,0.0004255,120]
[362160256,1748042824979,420.0,0.0004255,120]
[362160257,1748042825273,420.0,0.0004255,120]
[362160258,1748042825335,2513.63285859,0.0004255,120]
[362160259,1748042825534,518.5,0.0004255,120]
[362160260,1748042825601,420.0,0.0004255,120]
[362160261,1748042825853,155.03,0.0004255,120]
[362160262,1748042825914,151.0,0.0004255,120]
[362160263,1748042826288,537.6845,0.0004255,120]
[362160264,1748042826532,156.587,0.0004255,120]
[362160265,1748042826933,557.5788265,0.0004255,120]
[362160266,1748042827438,162.380719,0.0004255,120]
[362160267,1748042827557,578.20924308,0.0004255,120]
[362160268,1748042827810,300.0,0.0004255,120]
[362160269,1748042827924,168.3888056,0.0004255,120]
[362160270,1748042828438,599.60298507,0.0004255,120]
[362160271,1748042828605,174.61919141,0.0004255,120]
[362160272,1748042828842,621.78829552,0.0004255,120]
[362160273,1748042829069,300.0,0.0004255,120]
[362160274,1748042829135,420.0,0.0004255,120]
[362160275,1748042829232,174.61919141,0.0004255,120]
[362160276,1748042829468,420.0,0.0004255,120]
[362160277,1748042829521,644.79446246,0.0004255,120]
[362160278,1748042829726,300.0,0.0004255,120]
[362160279,1748042829786,420.0,0.0004255,120]
[362160280,1748042830022,420.0,0.0004255,120]
[362160281,1748042830149,668.65185757,0.0004255,120]
[362160282,1748042830247,220.64,0.0004255,120]
[362160283,1748042830787,693.3919763,0.0004255,120]
[362160284,1748042831606,420.0,0.0004255,120]
[362160285,1748042831868,531.46,0.0004255,120]
[362160286,1748042833119,200.0,0.0004255,120]
[362160287,1748042833370,1624.08267214,0.0004255,120]
[362160288,1748042833469,420.0,0.0004255,120]
[362160289,1748042833740,568.56338811,0.0004255,120]
[362160290,1748042833797,207.4,0.0004255,120]
[362160291,1748042833860,420.0,0.0004255,120]
[362160292,1748042834259,245.3,0.0004255,120]
[362160293,1748042834450,215.0738,0.0004255,120]
[362160294,1748042835354,420.0,0.0004255,120]
[362160295,1748042835573,223.0315306,0.0004255,120]
[362160296,1748042835672,300.0,0.0004255,120]
[362160297,1748042836272,231.28369723,0.0004255,120]
[362160298,1748042837154,239.84119403,0.0004255,120]
[362160299,1748042837787,248.71531821,0.0004255,120]
[362160300,1748042838110,-46.49617779,0.00017544,2]
[362160301,1748042838136,-200.0,0.00018088,2]
[362160302,1748042838163,-200.0,0.00018384,2]
[362160303,1748042838188,-200.0,0.000187,2]
[362160304,1748042838212,-200.0,0.00018714,2]
[362160305,1748042838235,-250.0,0.00018802,2]
[362160306,1748042838259,-150.0,0.00018832,7]
[362160307,1748042838283,-168.76,0.00018862,2]
[362160308,1748042838307,-237.88821359,0.00018867,2]
[362160309,1748042838335,-4875.35,0.00018868,2]
[362160310,1748042838358,-550.23,0.00018917,2]
[362160311,1748042838379,-150.0,0.00018944,2]
[362160312,1748042838403,-1200.0,0.00018952,2]
[362160313,1748042838426,-300.0,0.00018952,2]
[362160314,1748042838451,-23900.0,0.00018953,2]
[362160315,1748042838476,-332.88,0.00018967,2]
[362160316,1748042838499,-320.0,0.00019237,2]
[362160317,1748042838522,-237.88821359,0.00019334,2]
[362160318,1748042838543,-189.42,0.00019507,2]
[362160319,1748042838567,-182.36,0.0001951,2]
[362160320,1748042838591,-391.305857,0.00019599,2]
[362160321,1748042838616,-46.80929607,0.000196,2]
[362160322,1748042838706,257.91778498,0.0004255,120]
[362160323,1748042838779,420.0,0.0004255,120]
[362160324,1748042838952,420.0,0.0004255,120]
[362160325,1748042839102,267.46074303,0.0004255,120]
[362160326,1748042839198,542.93,0.0004255,120]
[362160327,1748042839511,420.0,0.0004255,120]
[362160328,1748042839736,277.35679052,0.0004255,120]
[362160329,1748042839797,420.0,0.0004255,120]
[362160330,1748042839999,420.0,0.0004255,120]
[362160331,1748042840243,527.45582381,0.0004255,120]
[362160332,1748042840417,287.61899177,0.0004255,120]
[362160333,1748042841075,298.26089446,0.0004255,120]
[362160334,1748042841781,309.29654756,0.0004255,120]
[362160335,1748042842470,320.74051982,0.0004255,120]
[362160336,1748042842595,420.0,0.0004255,120]
[362160337,1748042842848,420.0,0.0004255,120]
[362160338,1748042843089,332.60791905,0.0004255,120]
[362160339,1748042843772,344.91441206,0.0004255,120]
[362160340,1748042844409,357.6762453,0.0004255,120]
[362160341,1748042844470,420.0,0.0004255,120]
[362160342,1748042844682,420.0,0.0004255,120]
[362160343,1748042845036,370.91026638,0.0004255,120]
[362160344,1748042845165,420.0,0.0004255,120]
[362160345,1748042845695,384.63394623,0.0004255,120]
[362160346,1748042846326,384.63394623,0.0004255,120]
[362160347,1748042846512,420.0,0.0004255,120]
[362160348,1748042846797,420.0,0.0004255,120]
[362160349,1748042847041,420.0,0.0004255,120]
[362160350,1748042847309,283.22,0.0004255,120]
[362160351,1748042847554,420.0,0.0004255,120]
[362160352,1748042847983,420.0,0.0004255,120]
[362160353,1748042848110,420.0,0.0004255,120]
[362160354,1748042848140,-362.94,0.00018691,2]
[362160355,1748042848166,-501.0,0.0001928,2]
[362160356,1748042848189,-577.43621354,0.000196,2]
[362160357,1748042848317,420.0,0.0004255,120]
[362160358,1748042848568,420.0,0.0004255,120]
[362160359,1748042848813,420.0,0.0004255,120]
[362160360,1748042849058,420.0,0.0004255,120]
[362160361,1748042849294,420.0,0.0004255,120]
[362160362,1748042849545,420.0,0.0004255,120]
[362160363,1748042849784,420.0,0.0004255,120]
[362160364,1748042849888,420.0,0.0004255,120]
[362160365,1748042850001,3229.79332514,0.0004255,120]
[362160366,1748042850082,516.4,0.0004255,120]
[362160367,1748042850160,420.0,0.0004255,120]
[362160368,1748042850408,420.0,0.0004255,120]
[362160369,1748042850600,420.0,0.0004255,120]
[362160370,1748042850671,461.26,0.0004255,120]
[362160371,1748042854189,422.82,0.0004255,120]
[362160372,1748042854352,260.77680437,0.0004255,120]
[362160373,1748042855598,420.0,0.0004255,120]
[362160374,1748042855842,420.0,0.0004255,120]
[362160375,1748042856082,420.0,0.0004255,120]
[362160376,1748042856324,420.0,0.0004255,120]
[362160377,1748042856585,420.0,0.0004255,120]
[362160378,1748042856869,420.0,0.0004255,120]
[362160379,1748042857117,214.667088,0.0004255,120]
[362160380,1748042858798,1335.6055931,0.0004255,120]
[362160381,1748042859436,516.21,0.0004255,120]
[362160382,1748042859592,199.13500923,0.0004255,120]
[362160383,1748042859914,516.21,0.0004255,120]
[362160384,1748042860008,516.21,0.0004255,120]
[362160385,1748042860183,516.21,0.0004255,120]
[362160386,1748042860433,516.21,0.0004255,120]
[362160387,1748042860728,516.21,0.0004255,120]
[362160388,1748042861032,516.21,0.0004255,120]
[362160389,1748042861296,516.21,0.0004255,120]
[362160390,1748042861957,420.0,0.0004255,120]
[362160391,1748042862456,516.21,0.0004255,120]
[362160392,1748042862692,516.21,0.0004255,120]
[362160393,1748042862965,516.21,0.0004255,120]
[362160394,1748042863231,516.21,0.0004255,120]
[362160395,1748042863464,516.21,0.0004255,120]
[362160396,1748042863737,516.21,0.0004255,120]
[362160397,1748042863982,516.21,0.0004255,120]
[362160398,1748042864327,516.21,0.0004255,120]
[362160399,1748042864464,420.0,0.0004255,120]
[362160400,1748042864923,516.21,0.0004255,120]
[362160401,1748042865150,508.59346945,0.0004255,120]
[362160402,1748042865208,516.21,0.0004255,120]
[362160403,1748042865425,516.21,0.0004255,120]
[362160404,1748042865685,516.21,0.0004255,120]
[362160405,1748042865938,516.21,0.0004255,120]
[362160406,1748042866029,420.0,0.0004255,120]
[362160407,1748042866209,516.21,0.0004255,120]
[362160408,1748042866469,516.21,0.0004255,120]
[362160409,1748042866731,516.29155098,0.0004255,120]
[362160410,1748042870440,420.0,0.0004255,120]
[362160411,1748042871893,453.64629383,0.0004255,120]
[362160412,1748042872461,420.0,0.0004255,120]
[362160413,1748042872813,420.0,0.0004255,120]
[362160414,1748042873167,420.0,0.0004255,120]
[362160415,1748042873421,420.0,0.0004255,120]
[362160416,1748042873681,485.63,0.0004255,120]
[362160417,1748042877178,420.0,0.0004255,120]
[362160418,1748042881248,585.88628554,0.0004255,120]
[362160419,1748042881792,855.42213924,0.0004255,120]
[362160420,1748042882816,428.7514788,0.0004255,120]
[362160421,1748042886418,420.0,0.0004255,120]
[362160422,1748042886717,420.0,0.0004255,120]
[362160423,1748042887025,420.0,0.0004255,120]
[362160424,1748042887278,420.0,0.0004255,120]
[362160425,1748042887517,420.0,0.0004255,120]
[362160426,1748042887761,420.0,0.0004255,120]
[362160427,1748042887822,420.0,0.0004255,120]
[362160428,1748042888043,420.0,0.0004255,120]
[362160429,1748042888289,420.0,0.0004255,120]
[362160430,1748042888731,420.0,0.0004255,120]
[362160431,1748042888937,420.0,0.0004255,120]
[362160432,1748042889014,420.0,0.0004255,120]
[362160433,1748042889090,420.0,0.0004255,120]
[362160434,1748042889306,420.0,0.0004255,120]
[362160435,1748042890459,420.0,0.0004255,120]
[362160436,1748042894919,420.0,0.0004255,120]
[362160437,1748042900692,420.0,0.0004255,120]
[362160438,1748042900963,420.0,0.0004255,120]
[362160439,1748042905293,567.87174843,0.0004255,120]
[362160440,1748042906002,420.0,0.0004255,120]
[362160441,1748042906544,420.0,0.0004255,120]
[362160442,1748042906784,420.0,0.0004255,120]
[362160443,1748042906841,420.0,0.0004255,120]
[362160444,1748042907036,420.0,0.0004255,120]
[362160445,1748042907284,420.0,0.0004255,120]
[362160446,1748042907527,549.50650111,0.0004255,120]
[362160447,1748042909081,420.0,0.0004255,120]
[362160448,1748042909144,420.0,0.0004255,120]
[362160449,1748042909403,420.0,0.0004255,120]
[362160450,1748042909478,420.0,0.0004255,120]
[362160451,1748042909650,420.0,0.0004255,120]
[362160452,1748042909717,1086.52045876,0.0004255,120]
[362160453,1748042909779,1076.87198035,0.0004255,120]
[362160454,1748042909893,420.0,0.0004255,120]
[362160455,1748042909953,2060.03310038,0.0004255,120]
[362160456,1748042910147,420.0,0.0004255,120]
[362160457,1748042910304,2243.21727518,0.0004255,120]
[362160458,1748042910373,313.28031757,0.0004255,120]
[362160459,1748042910449,1027.38907799,0.0004255,120]
[362160460,1748042910504,2088.81727352,0.0004255,120]
[362160461,1748042910561,420.0,0.0004255,120]
[362160462,1748042910791,493.60452134,0.0004255,120]
[362160463,1748042910957,977.20853924,0.0004255,120]
[362160464,1748042911029,951.0627206,0.0004255,120]
[362160465,1748042911315,965.92796679,0.0004255,60]
[362160466,1748042911372,3158.23425051,0.0004255,120]
[362160467,1748042911706,1097.5346395,0.0004255,120]
[362160468,1748042912042,517.13719042,0.0004255,120]
[362160469,1748042912761,364.44058036,0.0004255,120]
[362160470,1748042912815,176.38853026,0.0004255,120]
[362160471,1748042913235,3040.991491,0.0002739,120]
[362160472,1748042913439,1070.08973472,0.0004255,120]
[362160473,1748042913728,1801.24544051,0.0004255,120]
[362160474,1748042914102,2078.83679793,0.00025,120]
[362160475,1748042914247,756.0,0.0004255,120]
[362160476,1748042914991,2758.2895483,0.0004255,120]
[362160477,1748042915119,1132.84502056,0.0004255,120]
[362160478,1748042916928,420.0,0.0004255,120]
[362160479,1748042917101,649.44566044,0.0004255,120]
[362160480,1748042917290,486.20800087,0.0004255,120]
[362160481,1748042917591,204.40997223,0.0004255,120]
[362160482,1748042917871,291.66672353,0.0004255,120]
[362160483,1748042919670,2613.30144645,0.0004255,120]
[362160484,1748042919977,2955.63823489,0.0004255,120]
[362160485,1748042920673,420.0,0.0004255,120]
[362160486,1748042920888,160.76016936,0.0004255,120]
[362160487,1748042920949,403.4509629,0.0004255,120]
[362160488,1748042922933,183.65344903,0.0004255,120]
[362160489,1748042923562,439.41218771,0.0004255,120]
[362160490,1748042923880,199.7990809,0.0004255,120]
[362160491,1748042924688,447.380412,0.0004255,60]
[362160492,1748042924752,1577.80469887,0.0004255,120]
[362160493,1748042924919,3009.90836056,0.0004255,120]
[362160494,1748042925116,312.45993134,0.0004255,120]
[362160495,1748042925181,2496.11,0.0004255,60]
[362160496,1748042925238,1645.05733164,0.00027,120]
[362160497,1748042926340,420.0,0.0004255,120]
[362160498,1748042928691,420.0,0.0004255,120]
[362160499,1748042930082,420.0,0.0004255,120]
[362160500,1748042930576,420.0,0.0004255,120]
[362160501,1748042930823,420.0,0.0004255,120]
[362160502,1748042932320,420.0,0.0004255,120]
[362160503,1748042932603,420.0,0.0004255,120]
[362160504,1748042932676,420.0,0.0004255,120]
[362160505,1748042932750,420.0,0.0004255,120]
[362160506,1748042932806,304.72465248,0.0004255,120]
[362160507,1748042934228,420.0,0.0004255,120]
[362160508,1748042935184,516.92131684,0.0004255,120]
[362160509,1748042938160,420.0,0.0004255,120]
[362160510,1748042938617,420.0,0.0004255,120]
[362160511,1748042940416,420.0,0.0004255,120]
[362160512,1748042940478,420.0,0.0004255,120]
[362160513,1748042942338,420.0,0.0004255,120]
[362160514,1748042942887,420.0,0.0004255,120]
[362160515,1748042944111,420.0,0.0004255,120]
[362160516,1748042944526,420.0,0.0004255,120]
[362160517,1748042944931,429.57073709,0.0004255,120]
[362160518,1748042945704,157.43,0.00013699,2]
[362160519,1748042946404,267.77183166,0.0004255,120]
[362160520,1748042946864,420.0,0.0004255,120]
[362160521,1748042948204,420.0,0.0004255,120]
[362160522,1748042948267,420.0,0.0004255,120]
[362160523,1748042948497,420.0,0.0004255,120]
[362160524,1748042948571,523.84190193,0.0004255,120]
[362160525,1748042948755,420.0,0.0004255,120]
[362160526,1748042949017,420.0,0.0004255,120]
[362160527,1748042949075,-164.1514504,0.00018971,2]
[362160528,1748042949197,459.53325356,0.0004255,120]
[362160529,1748042949261,420.0,0.0004255,120]
[362160530,1748042949565,420.0,0.0004255,120]
[362160531,1748042949800,420.0,0.0004255,120]
[362160532,1748042950047,420.0,0.0004255,120]
[362160533,1748042950144,420.0,0.0004255,120]
[362160534,1748042950427,420.0,0.0004255,120]
[362160535,1748042950482,420.0,0.0004255,120]
[362160536,1748042950558,420.0,0.0004255,120]
[362160537,1748042950773,258.51,0.0004255,120]
[362160538,1748042950833,420.0,0.0004255,120]
[362160539,1748042951040,420.0,0.0004255,120]
[362160540,1748042951298,420.0,0.0004255,120]
[362160541,1748042951600,420.0,0.0004255,120]
[362160542,1748042951788,420.0,0.0004255,120]
[362160543,1748042951843,420.0,0.0004255,120]
[362160544,1748042952404,420.0,0.0004255,120]
[362160545,1748042952683,197.00828707,0.0004255,120]
[362160546,1748042953642,420.0,0.0004255,120]
[362160547,1748042954807,470.9,0.0004255,120]
[362160548,1748042956163,420.0,0.0004255,120]
[362160549,1748042956538,470.9,0.0004255,120]
[362160550,1748042956804,470.9,0.0004255,120]
[362160551,1748042956930,420.0,0.0004255,120]
[362160552,1748042957052,470.9,0.0004255,120]
[362160553,1748042957296,470.9,0.0004255,120]
[362160554,1748042957535,470.9,0.0004255,120]
[362160555,1748042957789,470.9,0.0004255,120]
[362160556,1748042958034,470.9,0.0004255,120]
[362160557,1748042958222,420.0,0.0004255,120]
[362160558,1748042958291,470.9,0.0004255,120]
[362160559,1748042958532,470.9,0.0004255,120]
[362160560,1748042958764,470.9,0.0004255,120]
[362160561,1748042959100,420.0,0.0004255,120]
[362160562,1748042959167,470.9,0.0004255,120]
[362160563,1748042959207,-135.8485496,0.00018971,2]